bitfinex-derivatives/quotes_BTCF0:USTF0_20210406
["timestamp","ask_amount","ask_price","bid_price","bid_amount"]
[1617719042971,0.0525,57440.0,57439.0,0.01]
[1617719043170,0.0525,57440.0,57439.0,0.0525]
[1617719043364,0.0525,57440.0,57428.0,0.30387276]
[1617719043565,0.0525,57440.0,57439.0,0.27]
[1617719043964,0.0525,57440.0,57426.0,0.30387826]
[1617719044164,0.0525,57440.0,57439.0,0.27]
[1617719044565,0.0525,57440.0,57426.0,0.30387826]
[1617719044764,0.0525,57440.0,57431.0,0.27]
[1617719045067,0.0525,57440.0,57439.0,0.27]
[1617719045364,0.0525,57440.0,57439.0,0.0527]
[1617719045564,0.0525,57440.0,57439.0,0.3227]
[1617719045865,0.0525,57440.0,57439.0,0.0527]
[1617719046066,0.0525,57440.0,57439.0,0.3327]
[1617719047366,0.0525,57440.0,57439.0,0.28]
[1617719047668,0.0525,57440.0,57432.0,0.27]
[1617719047966,0.05975655,57441.0,57439.0,0.27]
[1617719048367,0.05975655,57441.0,57433.0,1.0]
[1617719048567,0.0521,57446.0,57433.0,1.27]
[1617719048768,0.0521,57446.0,57433.0,0.27]
[1617719048967,0.0527,57445.0,57432.0,0.11996]
[1617719049169,0.0527,57445.0,57433.0,0.27]
[1617719049571,4.643,57454.0,57433.0,0.27]
[1617719049773,1.0,57453.0,57433.0,0.27]
[1617719049971,3.643,57454.0,57433.0,0.27]
[1617719050470,0.10725655,57438.0,57434.0,1.5]
[1617719050971,0.10725655,57438.0,57435.0,0.27]
[1617719051171,0.10725655,57438.0,57437.0,1.0]
[1617719051570,0.10725655,57438.0,57437.0,0.27]
[1617719051771,0.15995655,57438.0,57437.0,0.27]
[1617719051970,0.15995655,57438.0,57434.0,1.5]
[1617719052173,0.15995655,57438.0,57437.0,2.5]
[1617719052372,0.10725655,57438.0,57437.0,2.5]
[1617719052574,0.10725655,57438.0,57437.0,1.87725655]
[1617719052874,0.10725655,57438.0,57437.0,2.87725655]
[1617719053773,0.10725655,57438.0,57437.0,1.87725655]
[1617719054073,0.10725655,57438.0,57437.0,2.87725655]
[1617719054473,2.7715,57480.0,57454.0,0.10725655]
[1617719054673,2.7715,57480.0,57454.0,0.24236655]
[1617719055073,0.0514,57479.0,57462.0,1.0]
[1617719055273,0.0514,57479.0,57455.0,1.5]
[1617719055274,0.0514,57479.0,57466.0,1.0]
[1617719055476,0.0514,57479.0,57466.0,1.1598]
[1617719055674,2.7715,57480.0,57468.0,1.0]
[1617719055874,2.7715,57480.0,57478.0,1.0]
[1617719056076,2.7715,57480.0,57478.0,1.1144]
[1617719056276,2.8242,57480.0,57478.0,0.1144]
[1617719056479,0.10725655,57479.0,57478.0,0.1144]
[1617719057086,0.10725655,57479.0,57478.0,1.1082]
[1617719057293,0.10725655,57479.0,57478.0,2.6071699]
[1617719057492,0.00186218,57484.0,57478.0,2.6071699]
[1617719057778,0.00186218,57484.0,57478.0,1.8771699]
[1617719058103,0.00186242,57485.0,57478.0,1.8771699]
[1617719058297,0.00186242,57485.0,57483.0,1.0]
[1617719058479,0.00186242,57485.0,57484.0,1.10725655]
[1617719058680,0.00186348,57488.0,57484.0,2.87725655]
[1617719058882,0.0528,57487.0,57484.0,2.87725655]
[1617719059082,0.0375,57487.0,57485.0,1.2]
[1617719059282,0.00186409,57489.0,57486.0,1.5]
[1617719059482,0.00186576,57493.0,57486.0,1.77]
[1617719059682,0.00186576,57493.0,57488.0,6.0]
[1617719059985,0.00186747,57498.0,57492.0,1.0]
[1617719060181,0.00186747,57498.0,57493.0,1.5]
[1617719060382,0.00186892,57502.0,57498.0,1.5]
[1617719060584,0.00186892,57502.0,57501.0,1.60725655]
[1617719060883,0.00186961,57504.0,57501.0,1.87725655]
[1617719061084,0.00186961,57504.0,57501.0,2.87725655]
[1617719061384,0.00187012,57505.0,57504.0,1.5]
[1617719061586,0.00187012,57505.0,57504.0,1.8326]
[1617719061786,0.00187151,57509.0,57504.0,2.1026]
[1617719061984,0.00187151,57509.0,57504.0,8.1026]
[1617719062185,0.26744721,57512.0,57504.0,8.1026]
[1617719062186,0.00187141,57512.0,57504.0,8.1026]
[1617719062385,0.00187141,57512.0,57509.0,1.7]
[1617719062586,0.00187141,57512.0,57511.0,1.80725655]
[1617719062786,0.00187329,57516.0,57511.0,1.80725655]
[1617719063087,0.00187382,57517.0,57511.0,2.81725655]
[1617719063285,0.0521,57516.0,57515.0,1.0]
[1617719063485,0.0521,57516.0,57512.0,0.0528]
[1617719063885,0.0521,57516.0,57515.0,1.0]
[1617719064091,0.10725655,57523.0,57515.0,1.7]
[1617719064311,0.55291736,57556.0,57515.0,7.97]
[1617719064494,1.13426486,57555.0,57548.0,1.10725655]
[1617719064786,1.13426486,57555.0,57548.0,0.09808]
[1617719065008,0.89268538,57560.0,57548.0,0.26510552]
[1617719065009,0.10725655,57560.0,57548.0,0.26510552]
[1617719065198,0.10725655,57560.0,57548.0,0.16041]
[1617719065599,0.18676481,57559.0,57549.0,0.09067307]
[1617719065789,0.10725655,57560.0,57549.0,0.09067307]
[1617719066687,0.0519,57563.0,57552.0,0.10725655]
[1617719066988,1.0,57569.0,57553.0,0.27]
[1617719067287,1.5,57569.0,57553.0,0.27]
[1617719067589,0.0528,57553.0,57526.0,0.0515]
[1617719067888,0.0528,57553.0,57529.0,1.5]
[1617719068191,0.0528,57553.0,57530.0,0.322]
[1617719068487,0.0528,57553.0,57552.0,0.10725655]
[1617719068687,0.0528,57553.0,57552.0,0.15885655]
[1617719068990,0.0526,57564.0,57552.0,0.10725655]
[1617719069188,0.10291046,57574.0,57552.0,0.10725655]
[1617719069489,1.0,57573.0,57552.0,0.37725655]
[1617719069789,1.12327999,57576.0,57552.0,0.37725655]
[1617719070290,0.68288984,57575.0,57552.0,0.37725655]
[1617719070488,0.10725655,57553.0,57552.0,0.37725655]
[1617719070692,0.15965655,57553.0,57552.0,0.37725655]
[1617719072092,0.15665655,57553.0,57552.0,0.37725655]
[1617719072490,0.10425655,57553.0,57552.0,0.42895655]
[1617719072692,0.10425655,57553.0,57552.0,0.37725655]
[1617719073693,0.10425655,57553.0,57552.0,1.87725655]
[1617719073894,0.0519,57570.0,57552.0,1.92935655]
[1617719074095,0.0519,57570.0,57552.0,1.87725655]
[1617719074394,1.0,57589.0,57553.0,0.2]
[1617719074694,0.50506631,57576.0,57565.0,0.24032655]
[1617719075093,0.50506631,57576.0,57566.0,0.01]
[1617719075294,0.50523858,57578.0,57566.0,0.01]
[1617719075495,0.0523,57577.0,57566.0,1.51]
[1617719075697,0.0523,57577.0,57566.0,1.5]
[1617719076097,0.0523,57577.0,57567.0,0.27]
[1617719076697,0.0519,57578.0,57576.0,0.10725655]
[1617719076897,0.10725655,57580.0,57576.0,0.10725655]
[1617719077199,0.10725655,57580.0,57577.0,0.16498]
[1617719077403,0.50743739,57590.0,57577.0,0.16498]
[1617719077603,0.09262187,57598.0,57577.0,0.16395087]
[1617719077900,0.09261953,57601.0,57578.0,0.2]
[1617719078099,0.09261953,57601.0,57577.0,0.16395087]
[1617719078304,0.0522,57605.0,57579.0,0.27]
[1617719078601,0.0522,57605.0,57596.0,0.10725655]
[1617719078800,0.0522,57605.0,57596.0,0.20495655]
[1617719078999,0.0522,57605.0,57596.0,0.21495655]
[1617719079499,0.0522,57605.0,57596.0,0.1077]
[1617719080103,1.0,57619.0,57596.0,0.1077]
[1617719080302,0.0518,57601.0,57596.0,0.1077]
[1617719080504,1.0,57622.0,57596.0,0.1077]
[1617719080704,0.15885655,57597.0,57596.0,0.21495655]
[1617719081206,0.0523,57617.0,57596.0,0.21495655]
[1617719081806,0.0527,57627.0,57596.0,0.21495655]
[1617719082610,0.0527,57627.0,57624.0,0.10725655]
[1617719082808,0.0527,57627.0,57624.0,0.23174655]
[1617719083008,0.1037,57634.0,57624.0,0.12449]
[1617719083609,1.1037,57634.0,57624.0,0.12449]
[1617719083913,1.0,57631.0,57596.0,0.0977]
[1617719084210,1.0,57629.0,57583.0,1.5]
[1617719084410,0.453,57637.0,57577.0,1.65498]
[1617719084611,1.0,57623.0,57597.0,0.37725655]
[1617719084810,0.453,57637.0,57597.0,0.10725655]
[1617719084811,1.0,57612.0,57597.0,0.10725655]
[1617719085011,1.0,57603.0,57597.0,0.10725655]
[1617719085310,1.0,57600.0,57598.0,0.27]
[1617719085711,1.0,57603.0,57598.0,0.27]
[1617719085912,1.0,57600.0,57598.0,0.27]
[1617719086212,0.0514,57620.0,57577.0,0.27]
[1617719086413,1.0,57604.0,57577.0,0.27]
[1617719086712,5.0,57629.0,57601.0,0.10725655]
[1617719086912,5.0,57624.0,57601.0,0.10725655]
[1617719087113,5.0,57626.0,57601.0,0.10725655]
[1617719087311,1.0,57603.0,57601.0,0.10725655]
[1617719087511,0.4784,57635.0,57601.0,0.09865655]
[1617719087715,1.0,57606.0,57601.0,0.09865655]
[1617719087911,1.0,57602.0,57599.0,0.15853]
[1617719088511,1.5,57626.0,57599.0,0.15853]
[1617719088713,1.10725655,57600.0,57599.0,0.15853]
[1617719088912,1.10725655,57600.0,57597.0,0.10725655]
[1617719089412,1.0,57598.0,57597.0,0.10725655]
[1617719089611,0.10725655,57600.0,57597.0,0.10725655]
[1617719090413,1.0,57609.0,57598.0,0.27]
[1617719090613,1.0,57612.0,57611.0,0.10725655]
[1617719090913,1.0,57612.0,57611.0,0.25234655]
[1617719091113,0.4784,57635.0,57611.0,0.25234655]
[1617719091514,1.0,57612.0,57611.0,0.25234655]
[1617719091717,0.4784,57635.0,57611.0,0.25234655]
[1617719092114,1.0,57616.0,57611.0,0.25234655]
[1617719092315,1.0,57615.0,57611.0,0.25234655]
[1617719092515,1.0,57614.0,57611.0,0.25234655]
[1617719092715,0.10725655,57612.0,57611.0,0.25234655]
[1617719094115,0.10725655,57612.0,57611.0,0.52234655]
[1617719094519,1.0,57623.0,57611.0,0.52234655]
[1617719094717,0.10725655,57619.0,57611.0,0.52234655]
[1617719096617,0.10725655,57619.0,57618.0,0.10725655]
[1617719097218,0.10725655,57619.0,57618.0,0.37725655]
[1617719098925,1.4784,57635.0,57618.0,0.50653655]
[1617719099220,0.4784,57635.0,57618.0,0.50653655]
[1617719100334,1.0,57630.0,57618.0,0.37725655]
[1617719100528,1.0,57628.0,57618.0,0.37725655]
[1617719100726,0.10725655,57619.0,57618.0,0.37725655]
[1617719100922,1.10725655,57619.0,57618.0,0.37725655]
[1617719101223,1.10725655,57619.0,57618.0,0.10725655]
[1617719101721,0.10725655,57619.0,57618.0,0.10725655]
[1617719101921,0.15985655,57619.0,57618.0,0.10725655]
[1617719102227,0.10725655,57619.0,57618.0,0.10725655]
[1617719103123,1.10725655,57619.0,57618.0,0.10725655]
[1617719104225,1.10725655,57619.0,57576.0,3.5066]
[1617719104226,0.10725655,57619.0,57576.0,3.5066]
[1617719104427,0.0528,57618.0,57576.0,3.5066]
[1617719104627,1.23061655,57619.0,57576.0,3.5066]
[1617719104828,1.0,57613.0,57609.0,0.10725655]
[1617719105227,0.6561,57634.0,57610.0,0.27]
[1617719105929,1.5,57633.0,57610.0,0.27]
[1617719106228,1.0,57611.0,57610.0,0.27]
[1617719106431,1.0,57611.0,57576.0,3.5066]
[1617719106930,0.10495,57614.0,57601.0,0.10725655]
[1617719107130,0.10495,57614.0,57577.0,0.27]
[1617719107333,1.5,57613.0,57602.0,0.27]
[1617719107531,1.5,57613.0,57576.0,3.5066]
[1617719107832,0.10606,57593.0,57576.0,3.5066]
[1617719108132,1.0,57585.0,57567.0,0.4554]
[1617719108332,1.0,57585.0,57577.0,0.27]
[1617719108532,1.0,57587.0,57577.0,0.27]
[1617719108732,1.0,57587.0,57568.0,0.27]
[1617719108733,1.0,57587.0,57586.0,0.10725655]
[1617719108932,5.0,57611.0,57586.0,0.10725655]
[1617719109135,0.4749,57612.0,57586.0,0.10725655]
[1617719109536,1.0,57591.0,57587.0,0.01]
[1617719109736,1.0,57587.0,57586.0,0.10725655]
[1617719110337,0.0519,57587.0,57586.0,0.10725655]
[1617719110538,1.0519,57587.0,57586.0,0.10725655]
[1617719110737,1.0,57587.0,57586.0,0.10725655]
[1617719110939,1.10725655,57587.0,57586.0,0.10725655]
[1617719111441,0.10725655,57587.0,57586.0,0.10725655]
[1617719111638,1.10725655,57587.0,57551.0,1.5]
[1617719111839,0.10725655,57587.0,57551.0,1.5]
[1617719112040,1.0,57573.0,57551.0,1.5]
[1617719112241,1.0,57573.0,57552.0,0.27]
[1617719112444,1.0,57572.0,57552.0,0.27]
[1617719112841,1.0,57571.0,57559.0,0.10725655]
[1617719113141,1.0,57570.0,57559.0,0.10725655]
[1617719113342,1.0,57570.0,57560.0,0.27]
[1617719113542,0.11066,57577.0,57560.0,0.27]
[1617719113844,1.0,57569.0,57559.0,0.10725655]
[1617719114142,1.0,57563.0,57559.0,0.10725655]
[1617719114344,1.0,57566.0,57559.0,0.10725655]
[1617719114642,1.0,57564.0,57559.0,0.10725655]
[1617719114843,0.10725655,57560.0,57557.0,0.10725655]
[1617719115057,0.10725655,57560.0,57539.0,3.0187]
[1617719115248,0.10725655,57560.0,57540.0,0.30227042]
[1617719115648,0.10725655,57560.0,57540.0,0.57227042]
[1617719115846,0.10725655,57560.0,57540.0,0.27]
[1617719116144,1.0,57559.0,57540.0,0.27]
[1617719116345,0.10725655,57560.0,57539.0,0.57228921]
[1617719116545,1.0,57553.0,57541.0,0.27]
[1617719116945,1.0,57553.0,57544.0,0.10725655]
[1617719117146,0.13046,57564.0,57544.0,0.10725655]
[1617719117344,0.13046,57564.0,57542.0,0.27]
[1617719117547,1.0,57550.0,57545.0,0.01]
[1617719117847,1.0,57550.0,57541.0,0.27]
[1617719118046,0.11513,57551.0,57538.0,0.30309615]
[1617719118246,1.11513,57551.0,57539.0,0.27]
[1617719118446,0.11513,57551.0,57541.0,0.27]
[1617719118646,0.0519,57550.0,57541.0,0.27]
[1617719118847,0.0519,57550.0,57540.0,0.27]
[1617719119047,1.0,57551.0,57549.0,0.10725655]
[1617719119248,1.0,57550.0,57542.0,0.27]
[1617719119547,1.0,57550.0,57537.0,0.30310163]
[1617719119548,1.0,57550.0,57541.0,0.01]
[1617719119947,1.0,57547.0,57536.0,0.30308771]
[1617719120150,1.0,57543.0,57537.0,0.01]
[1617719120348,1.0,57543.0,57542.0,0.27]
[1617719120548,0.0524,57546.0,57536.0,0.30308771]
[1617719120851,1.0,57544.0,57543.0,0.27]
[1617719121048,1.0524,57546.0,57543.0,0.37725655]
[1617719121350,0.0524,57546.0,57543.0,0.10725655]
[1617719121548,1.0,57550.0,57543.0,0.37725655]
[1617719121851,1.5,57567.0,57543.0,0.37725655]
[1617719122049,1.0,57549.0,57543.0,0.37725655]
[1617719122249,1.5,57567.0,57543.0,0.37725655]
[1617719122449,0.4548,57580.0,57544.0,1.5]
[1617719122950,1.0,57578.0,57564.0,0.10725655]
[1617719123351,1.0,57579.0,57564.0,0.10725655]
[1617719123751,1.0,57579.0,57564.0,0.23148655]
[1617719123952,1.0,57583.0,57565.0,1.5]
[1617719124152,1.0,57598.0,57565.0,1.5]
[1617719124466,1.0,57598.0,57565.0,1.77]
[1617719124851,0.3347298,57602.0,57565.0,1.77]
[1617719125051,0.3347298,57602.0,57588.0,0.26714655]
[1617719125254,1.5,57622.0,57588.0,0.26714655]
[1617719125255,1.33465943,57608.0,57588.0,0.26714655]
[1617719125451,1.33465943,57608.0,57589.0,0.27]
[1617719125653,0.33465943,57608.0,57589.0,0.27]
[1617719125854,0.40900754,57612.0,57589.0,0.27]
[1617719125855,0.3352734,57612.0,57589.0,0.27]
[1617719126254,0.33751019,57601.0,57589.0,0.27]
[1617719126855,0.33765873,57602.0,57589.0,0.27]
[1617719127055,0.33765873,57602.0,57599.0,0.10725655]
[1617719127256,0.75064717,57607.0,57599.0,0.10725655]
[1617719127456,0.33797401,57607.0,57600.0,0.27]
[1617719127656,0.33797401,57607.0,57600.0,0.42575]
[1617719127858,0.3379846,57604.0,57600.0,0.42575]
[1617719128756,0.3379846,57604.0,57600.0,0.27]
[1617719128957,0.10725655,57601.0,57600.0,0.27]
[1617719129357,0.51654659,57610.0,57600.0,0.27]
[1617719129358,0.33883031,57603.0,57600.0,0.36705]
[1617719129858,0.33904534,57604.0,57600.0,0.36705]
[1617719130258,0.39089837,57606.0,57600.0,0.36705]
[1617719130459,0.33919837,57606.0,57600.0,0.36705]
[1617719130758,0.33926427,57605.0,57600.0,0.36705]
[1617719130960,0.10725655,57601.0,57600.0,0.36705]
[1617719131959,0.3392205,57604.0,57600.0,0.36705]
[1617719132159,0.3392205,57604.0,57600.0,0.36602181]
[1617719132962,0.33950028,57607.0,57606.0,0.10725655]
[1617719133560,0.33950028,57607.0,57606.0,0.37725655]
[1617719135360,0.33977278,57608.0,57606.0,0.37725655]
[1617719136867,0.4674,57611.0,57606.0,0.37725655]
[1617719136868,0.34030007,57607.0,57606.0,0.37725655]
[1617719137364,1.23985248,57607.0,57606.0,0.37725655]
[1617719137764,1.51339011,57607.0,57606.0,0.37725655]
[1617719138565,1.51339011,57607.0,57606.0,1.87725655]
[1617719139269,1.03955877,57607.0,57606.0,1.87725655]
[1617719139669,1.24764767,57607.0,57606.0,1.87725655]
[1617719140472,1.03955877,57607.0,57606.0,5.21055655]
[1617719141572,0.6238012,57607.0,57606.0,5.21055655]
[1617719141975,0.81736878,57607.0,57606.0,5.21055655]
[1617719142175,0.81736878,57607.0,57606.0,5.41055655]
[1617719142373,0.6238012,57607.0,57606.0,5.41055655]
[1617719142674,0.6238012,57607.0,57606.0,5.21055655]
[1617719143074,0.28350113,57607.0,57606.0,5.21055655]
[1617719143574,0.28350113,57607.0,57606.0,5.41055655]
[1617719143875,0.08340113,57607.0,57606.0,5.41055655]
[1617719144076,0.28537205,57611.0,57606.0,5.41055655]
[1617719144275,0.28537205,57611.0,57606.0,5.21055655]
[1617719144476,0.34253881,57615.0,57606.0,5.21055655]
[1617719144875,0.34272519,57619.0,57606.0,1.87725655]
[1617719145075,0.34272519,57619.0,57618.0,0.10725655]
[1617719145275,0.4188652,57624.0,57618.0,0.10725655]
[1617719145276,0.34277109,57620.0,57618.0,0.10725655]
[1617719145475,0.34277109,57620.0,57618.0,0.37725655]
[1617719145878,0.44977342,57619.0,57618.0,0.37725655]
[1617719146182,0.86829162,57619.0,57618.0,0.37725655]
[1617719146677,1.02211388,57619.0,57618.0,0.37725655]
[1617719148096,0.10728,57619.0,57618.0,0.37725655]
[1617719148278,1.0,57645.0,57618.0,0.37725655]
[1617719148480,0.474,57652.0,57618.0,0.37725655]
[1617719148679,0.34264416,57619.0,57618.0,0.37725655]
[1617719148879,0.34264416,57619.0,57618.0,1.87725655]
[1617719149079,0.34316577,57620.0,57618.0,1.87725655]
[1617719149479,0.34319956,57623.0,57618.0,1.87725655]
[1617719149993,0.12416031,57645.0,57618.0,1.87725655]
[1617719149994,0.34339248,57625.0,57618.0,1.87725655]
[1617719150380,0.34344654,57627.0,57618.0,1.87725655]
[1617719150985,0.34372177,57631.0,57618.0,1.87725655]
[1617719151181,0.34372177,57631.0,57630.0,0.10725655]
[1617719151481,0.42008318,57635.0,57630.0,0.37725655]
[1617719151681,0.42008318,57635.0,57631.0,1.5]
[1617719151881,0.42008318,57635.0,57631.0,1.49897212]
[1617719152085,0.41878904,57636.0,57632.0,0.27]
[1617719152283,0.41878904,57636.0,57632.0,1.76897212]
[1617719152488,0.34270189,57633.0,57632.0,1.76897212]
[1617719152986,0.34266318,57634.0,57632.0,1.49897212]
[1617719153187,0.34266318,57634.0,57632.0,1.87811212]
[1617719153489,0.34276899,57636.0,57632.0,1.87811212]
[1617719153887,0.34317733,57643.0,57632.0,1.87811212]
[1617719154390,0.34321483,57645.0,57632.0,1.87811212]
[1617719154910,0.34325997,57646.0,57632.0,1.87811212]
[1617719155102,0.34325997,57646.0,57645.0,0.10725655]
[1617719155495,0.10725655,57660.0,57645.0,0.37725655]
[1617719155496,0.41943344,57649.0,57645.0,0.37725655]
[1617719155900,0.34321317,57646.0,57645.0,0.37725655]
[1617719157114,0.45046972,57646.0,57645.0,0.37725655]
[1617719157695,1.45046972,57646.0,57645.0,0.27]
[1617719158017,3.48573699,57646.0,57605.0,0.3661786]
[1617719158196,3.96146838,57646.0,57602.0,0.36619795]
[1617719158706,0.11254,57633.0,57602.0,1.5]
[1617719158906,0.11254,57633.0,57610.0,1.77]
[1617719159198,0.45477705,57633.0,57632.0,0.10725655]
[1617719159596,0.11254,57633.0,57632.0,0.37725655]
[1617719159796,0.34234648,57634.0,57632.0,0.37725655]
[1617719160611,0.34179633,57637.0,57632.0,0.37725655]
[1617719161106,0.34186442,57639.0,57638.0,0.10725655]
[1617719161499,0.34186442,57639.0,57638.0,0.37725655]
[1617719161899,0.34186442,57639.0,57638.0,0.37622889]
[1617719162598,0.34174376,57641.0,57638.0,0.37622889]
[1617719162798,0.34174376,57641.0,57639.0,1.5]
[1617719163099,0.34120961,57648.0,57640.0,0.27]
[1617719163297,0.34120961,57648.0,57641.0,1.5]
[1617719163498,0.14120961,57648.0,57641.0,4.5092]
[1617719163698,0.34146382,57652.0,57642.0,0.01]
[1617719164100,0.4173236,57657.0,57642.0,0.01]
[1617719164101,0.41742899,57658.0,57642.0,0.01]
[1617719164701,0.41770107,57661.0,57642.0,0.01]
[1617719165201,0.41770107,57661.0,57660.0,0.10725655]
[1617719165404,0.41795664,57665.0,57660.0,0.10725655]
[1617719165604,0.41795664,57665.0,57661.0,0.27]
[1617719165805,0.41778858,57664.0,57661.0,0.27]
[1617719166205,0.41752152,57662.0,57661.0,0.27]
[1617719166605,0.41780927,57665.0,57661.0,0.27]
[1617719167005,0.10725655,57676.0,57661.0,0.27]
[1617719167006,0.41743944,57662.0,57661.0,0.27]
[1617719168507,0.4170452,57664.0,57661.0,0.27]
[1617719168909,0.41711928,57665.0,57661.0,0.27]
[1617719169425,0.09842879,57666.0,57661.0,0.27]
[1617719170009,0.10417392,57664.0,57661.0,0.27]
[1617719170510,0.10397448,57665.0,57661.0,0.27]
[1617719170911,0.10725655,57667.0,57661.0,0.27]
[1617719171114,0.10725655,57667.0,57666.0,0.10725655]
[1617719171712,0.10725655,57667.0,57666.0,0.11725655]
[1617719172115,0.10725655,57667.0,57666.0,0.11622921]
[1617719174919,0.10725655,57667.0,57666.0,0.10622921]
[1617719175217,0.10725655,57667.0,57656.0,0.10725655]
[1617719175218,0.22635655,57667.0,57656.0,0.10725655]
[1617719175918,0.22635655,57667.0,57657.0,0.27]
[1617719176119,1.0,57660.0,57626.0,1.5]
[1617719176318,1.0,57657.0,57617.0,0.30382371]
[1617719176518,1.2,57656.0,57617.0,0.30382371]
[1617719176723,1.0,57649.0,57614.0,0.30382891]
[1617719176919,1.0,57636.0,57618.0,0.27]
[1617719177123,1.2,57635.0,57611.0,0.27]
[1617719177420,0.10725655,57633.0,57615.0,0.27]
[1617719177820,0.10725655,57633.0,57612.0,0.01]
[1617719178022,0.10725655,57633.0,57604.0,0.27]
[1617719178423,0.10725655,57633.0,57613.0,0.01]
[1617719178720,0.10725655,57633.0,57610.0,0.27]
[1617719178721,0.10725655,57633.0,57602.0,0.27]
[1617719178921,0.10725655,57633.0,57611.0,0.27]
[1617719179122,0.10725655,57633.0,57614.0,0.01]
[1617719179323,0.10146,57636.0,57631.0,0.10725655]
[1617719180023,0.10146,57636.0,57632.0,0.27]
[1617719181326,0.10725655,57633.0,57632.0,0.27]
[1617719183024,0.30725655,57633.0,57632.0,0.27]
[1617719183224,0.10725655,57633.0,57632.0,0.27]
[1617719185638,0.42456439,57635.0,57632.0,0.26897238]
[1617719185839,0.42456439,57635.0,57632.0,0.40417238]
[1617719186231,0.4635,57648.0,57632.0,0.40417238]
[1617719186232,0.42520123,57640.0,57632.0,0.40417238]
[1617719186831,0.42612136,57639.0,57632.0,0.40417238]
[1617719187132,0.09073928,57639.0,57632.0,0.40417238]
[1617719187329,0.09073928,57639.0,57638.0,0.10725655]
[1617719187630,0.42717717,57640.0,57638.0,0.10725655]
[1617719187929,0.4635,57648.0,57638.0,0.37725655]
[1617719188331,0.42787824,57639.0,57638.0,0.37725655]
[1617719188932,0.77780751,57639.0,57638.0,0.37725655]
[1617719189734,0.34992927,57639.0,57638.0,0.37725655]
[1617719190132,0.43978296,57639.0,57638.0,0.37725655]
[1617719190434,0.34992927,57639.0,57638.0,0.37725655]
[1617719192538,0.06164675,57639.0,57638.0,0.37725655]
[1617719192939,0.68284923,57665.0,57638.0,0.37725655]
[1617719192940,0.42977632,57643.0,57638.0,0.37725655]
[1617719193337,0.43048768,57648.0,57638.0,0.37725655]
[1617719193937,0.43085082,57651.0,57638.0,0.37725655]
[1617719195338,0.43220664,57653.0,57650.0,0.10725655]
[1617719195740,0.43220664,57653.0,57651.0,0.27]
[1617719196141,0.43212285,57654.0,57651.0,0.27]
[1617719197042,0.43244203,57655.0,57651.0,0.27]
[1617719197547,0.43311462,57657.0,57651.0,0.27]
[1617719198044,0.43328088,57656.0,57651.0,0.27]
[1617719198443,0.49491595,57656.0,57651.0,0.27]
[1617719198844,0.43328088,57656.0,57651.0,0.27]
[1617719199243,0.43556379,57652.0,57651.0,0.27]
[1617719200344,0.49719479,57652.0,57651.0,0.27]
[1617719200946,0.43556379,57652.0,57651.0,0.27]
[1617719201745,0.93134344,57652.0,57651.0,0.27]
[1617719203048,1.07383344,57652.0,57651.0,0.27]
[1617719203446,1.18108999,57652.0,57651.0,0.27]
[1617719204052,1.79779345,57652.0,57651.0,0.26897259]
[1617719204251,1.73614861,57652.0,57651.0,0.26897259]
[1617719204651,1.62889206,57652.0,57651.0,0.26897259]
[1617719204852,1.6905372,57652.0,57651.0,0.26897259]
[1617719205453,1.79779375,57652.0,57651.0,0.26897259]
[1617719211457,1.79779375,57652.0,57651.0,0.37622914]
[1617719214361,1.79779375,57652.0,57651.0,0.37520177]
[1617719215362,1.79779375,57652.0,57651.0,0.26794522]
[1617719216062,0.24974655,57652.0,57651.0,0.26794522]
[1617719216764,1.74742479,57652.0,57651.0,0.26794522]
[1617719217563,1.80906615,57652.0,57651.0,0.37520177]
[1617719217964,2.16881429,57652.0,57651.0,0.37520177]
[1617719218766,1.60969306,57652.0,57651.0,0.37520177]
[1617719219366,2.17071721,57652.0,57651.0,0.37520177]
[1617719219665,2.22211721,57652.0,57651.0,0.42790177]
[1617719220066,2.17071721,57652.0,57651.0,0.37520177]
[1617719220771,1.60969306,57652.0,57651.0,0.37520177]
[1617719221369,1.60969306,57652.0,57651.0,0.10725655]
[1617719222170,2.17113348,57652.0,57651.0,0.10725655]
[1617719222770,4.67113348,57652.0,57633.0,0.30744394]
[1617719223170,5.37205657,57652.0,57627.0,0.30748444]
[1617719223372,4.37205657,57652.0,57627.0,0.30748444]
[1617719223571,1.0,57649.0,57631.0,0.10725655]
[1617719223771,0.56044087,57636.0,57631.0,0.10725655]
[1617719223970,0.66838087,57636.0,57631.0,0.10725655]
[1617719224173,1.30083171,57632.0,57631.0,0.10725655]
[1617719225073,1.86117939,57632.0,57631.0,0.10725655]
[1617719225572,1.96843594,57632.0,57625.0,0.10725655]
[1617719226173,1.96843594,57632.0,57626.0,0.27]
[1617719226472,0.56100192,57630.0,57626.0,0.27]
[1617719226872,1.30271932,57627.0,57626.0,0.27]
[1617719229374,1.30271932,57627.0,57625.0,0.10725655]
[1617719229375,0.80168884,57627.0,57625.0,0.10725655]
[1617719229678,0.95878884,57627.0,57625.0,0.10725655]
[1617719229878,1.30421694,57626.0,57625.0,0.10725655]
[1617719230476,1.36587241,57626.0,57625.0,0.10725655]
[1617719231478,1.47312896,57626.0,57625.0,0.10725655]
[1617719232779,1.62474896,57626.0,57625.0,0.10725655]
[1617719234381,1.62474896,57626.0,57613.0,0.30742192]
[1617719234581,3.3318,57621.0,57613.0,0.30742192]
[1617719234781,3.3318,57621.0,57591.0,0.57385424]
[1617719234782,1.7989019,57614.0,57608.0,0.30743634]
[1617719234982,1.7,57613.0,57608.0,0.30743634]
[1617719235482,0.10725655,57604.0,57603.0,0.3074618]
[1617719235682,0.10725655,57604.0,57600.0,0.36895416]
[1617719235683,2.60725655,57604.0,57593.0,0.30748965]
[1617719236087,2.80725655,57604.0,57593.0,0.30748965]
[1617719236282,2.80725655,57604.0,57587.0,0.30754493]
[1617719236283,1.5,57593.0,57587.0,0.30754493]
[1617719236581,1.0,57588.0,57582.0,0.30756393]
[1617719237083,0.79490779,57583.0,57579.0,0.30759244]
[1617719237282,1.79490779,57583.0,57579.0,0.30759244]